bitfinex-derivatives/quotes_BTCF0:USTF0_20250429
["timestamp","ask_amount","ask_price","bid_price","bid_amount"]
[1745947062909,0.94353271,95203.0,95202.0,0.00157559]
[1745947063302,0.94353271,95203.0,95202.0,0.00257559]
[1745947063797,0.94253271,95203.0,95202.0,0.00257559]
[1745947066011,0.83749271,95203.0,95202.0,0.00257559]
[1745947066421,0.2100337,95199.0,95198.0,0.00157555]
[1745947066711,0.5708337,95199.0,95198.0,0.00157555]
[1745947067107,0.6908337,95199.0,95198.0,0.00157555]
[1745947067607,0.6908337,95199.0,95198.0,0.00257555]
[1745947068007,0.6908337,95199.0,95198.0,0.00157555]
[1745947068207,0.6918337,95199.0,95198.0,0.00945672]
[1745947068409,0.6918337,95199.0,95198.0,0.00157555]
[1745947069018,0.6908337,95199.0,95198.0,0.00157555]
[1745947069728,0.7968777,95199.0,95198.0,0.00157555]
[1745947069922,0.6918337,95199.0,95198.0,0.00157555]
[1745947070124,0.6918337,95199.0,95198.0,0.00257555]
[1745947070613,0.586844,95199.0,95169.0,0.3608]
[1745947070918,0.2100977,95170.0,95169.0,0.58316683]
[1745947071920,0.2100977,95170.0,95169.0,0.73066683]
[1745947072107,0.2100977,95170.0,95169.0,0.1704519]
[1745947072312,0.2100977,95170.0,95169.0,0.01068497]
[1745947072715,0.2100977,95170.0,95169.0,0.01668497]
[1745947072916,0.105076,95170.0,95147.0,0.3608]
[1745947073119,0.2101352,95153.0,95152.0,0.0742]
[1745947073416,0.5709352,95153.0,95152.0,0.0742]
[1745947074010,0.7167352,95153.0,95152.0,0.0742]
[1745947074212,0.7167352,95153.0,95152.0,0.0762]
[1745947074213,0.8367352,95153.0,95152.0,0.0762]
[1745947074410,0.3301352,95153.0,95152.0,0.29406807]
[1745947075115,0.2101352,95153.0,95152.0,0.08393067]
[1745947075313,0.2101352,95153.0,95152.0,0.29406807]
[1745947075620,0.2101352,95153.0,95152.0,0.00973067]
[1745947075920,0.210144,95149.0,95148.0,0.0727]
[1745947077229,0.330144,95149.0,95148.0,0.0727]
[1745947078118,0.36174617,95149.0,95148.0,0.0727]
[1745947081124,0.24174617,95149.0,95148.0,0.2828462]
[1745947082922,0.24174617,95149.0,95148.0,0.2838462]
[1745947083520,0.24174617,95149.0,95148.0,0.0737]
[1745947084018,0.31244617,95149.0,95148.0,0.1453]
[1745947084223,0.50574617,95149.0,95148.0,0.1453]
[1745947084927,0.50574617,95149.0,95148.0,0.1443]
[1745947087024,0.50574617,95149.0,95148.0,0.3544462]
[1745947087232,0.36174617,95149.0,95148.0,0.3544462]
[1745947087532,0.36174617,95149.0,95148.0,0.1443]
[1745947088030,0.15160217,95149.0,95148.0,0.3544462]
[1745947088230,0.24174617,95149.0,95148.0,0.3544462]
[1745947088730,0.03160217,95149.0,95148.0,0.3544462]
[1745947089234,0.24174617,95149.0,95148.0,0.3544462]
[1745947091723,0.03160217,95149.0,95148.0,0.3544462]
[1745947092126,0.03160217,95149.0,95148.0,0.4744462]
[1745947093036,0.0525251,95169.0,95167.0,0.2100999]
[1745947093236,0.2100999,95169.0,95168.0,0.1444]
[1745947093434,0.2100999,95169.0,95168.0,0.3545021]
[1745947094032,0.2100999,95169.0,95168.0,0.1444]
[1745947094230,0.2130999,95169.0,95168.0,0.3545021]
[1745947095328,0.0525282,95164.0,95161.0,0.0743]
[1745947095529,0.2101131,95163.0,95162.0,0.2816148]
[1745947095836,0.2101131,95163.0,95162.0,0.3510148]
[1745947096639,0.2101131,95163.0,95162.0,0.3510153]
[1745947096840,0.0525267,95166.0,95165.0,0.2101043]
[1745947097033,0.0525267,95166.0,95165.0,0.3510043]
[1745947097837,0.2626332,95166.0,95165.0,0.4035309]
[1745947098140,0.2626332,95166.0,95165.0,0.3510043]
[1745947099540,0.2636332,95166.0,95165.0,0.3510043]
[1745947099749,0.3350332,95166.0,95165.0,0.3510043]
[1745947099937,0.001,95166.0,95165.0,0.3510043]
[1745947100438,0.002,95166.0,95165.0,0.3510043]
[1745947100640,0.2121065,95166.0,95165.0,0.1409]
[1745947100943,0.2111065,95166.0,95165.0,0.1409]
[1745947101125,0.001,95166.0,95165.0,0.3540043]
[1745947101532,0.0525202,95178.0,95175.0,0.0525211]
[1745947101733,0.2626024,95178.0,95177.0,0.2100822]
[1745947102139,0.2626024,95178.0,95177.0,0.3504822]
[1745947103345,0.2636024,95178.0,95177.0,0.3504822]
[1745947103644,0.2636024,95178.0,95177.0,0.36271628]
[1745947104036,0.2636024,95178.0,95177.0,0.0691]
[1745947104243,0.2101153,95162.0,95161.0,0.2813155]
[1745947104436,0.2101153,95162.0,95161.0,0.4217175]
[1745947104737,0.2101153,95162.0,95161.0,0.36276835]
[1745947105543,0.2101153,95162.0,95161.0,0.36376835]
[1745947106745,0.2101153,95162.0,95161.0,0.36476835]
[1745947108644,0.2101153,95162.0,95161.0,0.36376835]
[1745947109144,0.2101153,95162.0,95161.0,0.36276835]
[1745947110146,0.2101153,95162.0,95161.0,0.36476835]
[1745947110842,0.2101153,95162.0,95161.0,0.36576835]
[1745947111646,0.0525236,95173.0,95167.0,0.0525258]
[1745947111939,0.0525223,95174.0,95167.0,0.0525258]
[1745947111940,0.3339142,95176.0,95175.0,0.2100866]
[1745947112135,0.2626142,95176.0,95175.0,0.2100866]
[1745947112533,0.0525167,95184.0,95175.0,0.2100866]
[1745947112534,0.075,95189.0,95177.0,0.05252]
[1745947112735,0.5708749,95182.0,95181.0,0.2100734]
[1745947113440,0.1463,95189.0,95184.0,0.2100668]
[1745947113633,0.0713,95189.0,95184.0,0.2100668]
[1745947113835,0.2115646,95185.0,95184.0,0.2100668]
[1745947114535,0.2115646,95185.0,95184.0,0.3555668]
[1745947114536,0.2125646,95185.0,95184.0,0.3555668]
[1745947115037,0.2115646,95185.0,95184.0,0.3555668]
[1745947115238,0.2125646,95185.0,95184.0,0.4755668]
[1745947115441,0.2125646,95185.0,95184.0,0.12]
[1745947115641,0.3545646,95185.0,95184.0,0.12]
[1745947116038,0.3535646,95185.0,95184.0,0.121]
[1745947116240,0.3535646,95185.0,95184.0,0.001]
[1745947116645,0.3535646,95185.0,95184.0,0.002]
[1745947117141,0.2101129,95169.0,95168.0,0.2626184]
[1745947117944,0.3507129,95169.0,95168.0,0.2100935]
[1745947118346,0.3507129,95169.0,95167.0,0.0731]
[1745947118347,0.2101021,95168.0,95167.0,0.2832043]
[1745947118847,0.3507021,95168.0,95167.0,0.2832043]
[1745947119748,0.3507021,95168.0,95167.0,0.0731]
[1745947120144,0.3507021,95168.0,95167.0,0.2832043]
[1745947120645,0.0525242,95174.0,95173.0,0.0525223]
[1745947120947,0.2626261,95174.0,95173.0,0.2626089]
[1745947121140,0.2100844,95178.0,95177.0,0.2100822]
[1745947121349,0.2626046,95178.0,95177.0,0.2100822]
[1745947122046,0.2626046,95178.0,95177.0,0.2863822]
[1745947122642,0.2636046,95178.0,95177.0,0.2863822]
[1745947123147,0.001,95178.0,95177.0,0.4063822]
[1745947123549,0.002,95178.0,95177.0,0.4063822]
[1745947124439,0.0540164,95185.0,95184.0,0.2100668]
[1745947124646,0.2640874,95185.0,95184.0,0.2100668]
[1745947125153,0.2640874,95185.0,95184.0,0.3300668]
[1745947125351,0.211571,95185.0,95184.0,0.3300668]
[1745947125939,0.0015,95185.0,95184.0,0.3300668]
[1745947126340,0.2115646,95185.0,95184.0,0.3300668]
[1745947127650,0.2115646,95185.0,95184.0,0.3310668]
[1745947128243,0.3561646,95185.0,95184.0,0.3330668]
[1745947130148,0.3561646,95185.0,95184.0,0.3320668]
[1745947130346,0.3561646,95185.0,95184.0,0.3310668]
[1745947130557,0.3561646,95185.0,95184.0,0.3320668]
[1745947130853,0.0015,95185.0,95184.0,0.3320668]
[1745947131150,0.2115646,95185.0,95184.0,0.3320668]
[1745947132253,0.2115646,95185.0,95184.0,0.2120668]
[1745947132655,0.2115646,95185.0,95184.0,0.2130668]
[1745947133155,0.2115646,95185.0,95184.0,0.2110668]
[1745947133760,0.2115646,95185.0,95184.0,0.001]
[1745947133956,0.2115646,95185.0,95184.0,0.2110668]
[1745947134460,0.210069,95183.0,95182.0,0.4107874]
[1745947135563,0.210069,95183.0,95182.0,0.2845697]
[1745947136361,0.570869,95183.0,95182.0,0.001]
[1745947137052,0.2100778,95179.0,95178.0,0.2100796]
[1745947137460,0.2197,95182.0,95173.0,0.0525227]
[1745947137654,0.2100817,95180.0,95179.0,0.2100734]
[1745947138058,0.3557817,95180.0,95179.0,0.2100734]
[1745947138357,0.1457,95180.0,95149.0,0.052536]
[1745947138554,0.2101109,95164.0,95163.0,0.42329113]
[1745947138749,0.2101109,95164.0,95163.0,0.42329443]
[1745947139165,0.3301109,95164.0,95163.0,0.42329443]
[1745947139365,0.4768109,95164.0,95163.0,0.42329443]
[1745947139667,0.4768109,95164.0,95163.0,0.2121131]
[1745947140162,0.2626629,95157.0,95154.0,0.0525331]
[1745947140362,0.2626629,95157.0,95156.0,0.210123]
[1745947140963,0.2626629,95157.0,95156.0,0.22228429]
[1745947141152,0.3826629,95157.0,95156.0,0.22228429]
[1745947141358,0.3826629,95157.0,95156.0,0.27481619]
[1745947142666,0.3826629,95157.0,95156.0,0.27581619]
[1745947142964,0.12,95157.0,95156.0,0.27581619]
[1745947143356,0.4133222,95174.0,95156.0,0.27581619]
[1745947143357,0.5708888,95174.0,95173.0,0.210091]
[1745947143559,0.0525208,95177.0,95176.0,0.2100822]
[1745947143765,0.262603,95177.0,95176.0,0.2100822]
[1745947144161,0.382603,95177.0,95176.0,0.2100822]
[1745947144462,0.3300822,95177.0,95176.0,0.2100822]
[1745947144782,0.3300822,95177.0,95176.0,0.2843822]
[1745947144969,0.12,95177.0,95176.0,0.6451822]
[1745947145268,0.08010354,95181.0,95180.0,0.2100756]
[1745947146063,0.08010354,95181.0,95180.0,0.22554245]
[1745947146260,0.08010354,95181.0,95180.0,0.34554245]
[1745947146659,0.0015,95185.0,95184.0,0.2100668]
[1745947146855,0.2115646,95185.0,95184.0,0.22553365]
[1745947147269,0.2115646,95185.0,95184.0,0.22553233]
[1745947147874,0.2125646,95185.0,95184.0,0.22553233]
[1745947148058,0.2125646,95185.0,95184.0,0.2100668]
[1745947148467,0.2115646,95185.0,95184.0,0.2860668]
[1745947148772,0.2115646,95185.0,95184.0,0.2870668]
[1745947149069,0.2115646,95185.0,95184.0,0.2130668]
[1745947149267,0.2115646,95185.0,95184.0,0.2120668]
[1745947149576,0.2115646,95185.0,95184.0,0.2130668]
[1745947150268,0.2115646,95185.0,95184.0,0.2870668]
[1745947150572,0.2115646,95185.0,95184.0,0.2860668]
[1745947150871,0.2115646,95185.0,95184.0,0.2120668]
[1745947151668,0.2115646,95185.0,95184.0,0.002]
[1745947152166,0.2115646,95185.0,95164.0,0.42329023]
[1745947152167,0.2101087,95165.0,95164.0,0.42329023]
[1745947152566,0.2829065,95166.0,95165.0,0.2101087]
[1745947153071,0.4029065,95166.0,95165.0,0.2101087]
[1745947153464,0.4029065,95166.0,95165.0,0.2851087]
[1745947153866,0.4029065,95166.0,95165.0,0.076]
[1745947154065,0.4029065,95166.0,95165.0,0.001]
[1745947154271,0.4029065,95166.0,95165.0,0.002]
[1745947155375,0.2101418,95150.0,95141.0,0.2101612]
[1745947155560,0.5709418,95150.0,95143.0,0.075]
[1745947155961,0.5709418,95150.0,95145.0,0.01192468]
[1745947156160,0.3301418,95150.0,95146.0,0.3608]
[1745947156976,0.3301418,95150.0,95149.0,0.42332533]
[1745947157768,0.3301418,95150.0,95149.0,0.49682533]
[1745947157962,0.3301418,95150.0,95149.0,0.42332533]
[1745947158165,0.6909418,95150.0,95149.0,0.21318133]
[1745947158373,0.7657418,95150.0,95149.0,0.21318133]
[1745947158967,0.2101507,95146.0,95145.0,0.0114962]
[1745947159164,0.2101507,95146.0,95144.0,0.2101531]
[1745947159165,0.2101529,95145.0,95144.0,0.2101531]
[1745947159370,0.3581529,95145.0,95144.0,0.2101531]
[1745947160180,0.4781529,95145.0,95144.0,0.2111531]
[1745947160366,0.4781529,95145.0,95144.0,0.22263177]
[1745947160864,0.4781529,95145.0,95144.0,0.01247867]
[1745947161068,0.4781529,95145.0,95144.0,0.01347867]
[1745947162576,0.4781529,95145.0,95144.0,0.22363377]
[1745947162780,0.4781529,95145.0,95144.0,0.01347867]
[1745947164080,0.4781529,95145.0,95144.0,0.22363377]
[1745947164579,0.3301529,95145.0,95144.0,0.22363377]
[1745947164770,0.12,95145.0,95144.0,0.22363377]
[1745947164970,0.12,95145.0,95144.0,0.65983377]
[1745947165378,0.3301529,95145.0,95144.0,0.65983377]
[1745947165985,0.12,95145.0,95144.0,0.67539934]
[1745947166482,0.12,95145.0,95144.0,0.67540025]
[1745947167069,0.2101374,95152.0,95151.0,0.2101396]
[1745947167272,0.2101374,95152.0,95151.0,0.22570608]
[1745947168078,0.210134,95154.0,95153.0,0.2101352]
[1745947168376,0.05252,95178.0,95171.0,0.2100955]
[1745947168678,0.3608,95181.0,95171.0,0.22589021]
[1745947168884,0.0748,95178.0,95171.0,0.22589021]
[1745947169082,0.0748,95178.0,95171.0,0.34589021]
[1745947169383,0.2100894,95174.0,95171.0,0.34589021]
[1745947169682,0.2100894,95174.0,95173.0,0.210091]
[1745947169881,0.2100894,95174.0,95173.0,0.22588571]
[1745947170475,0.2100834,95177.0,95176.0,0.2626006]
[1745947170688,0.2100834,95177.0,95176.0,0.27839531]
[1745947171682,0.3608,95181.0,95176.0,0.01579471]
[1745947171886,0.0535103,95196.0,95173.0,0.3608]
[1745947171887,0.0525134,95190.0,95184.0,0.2100668]
[1745947172081,0.0525134,95190.0,95184.0,0.22586151]
[1745947172281,0.2115646,95185.0,95184.0,0.22586151]
[1745947173181,0.2867646,95185.0,95184.0,0.22686151]
[1745947173388,0.2867646,95185.0,95184.0,0.22786151]
[1745947173686,0.2867646,95185.0,95184.0,0.23937877]
[1745947173876,0.2877646,95185.0,95184.0,0.23837877]
[1745947174071,0.0025,95185.0,95184.0,0.22158406]
[1745947174278,0.0025,95185.0,95184.0,0.2375579]
[1745947175080,0.0025,95185.0,95184.0,0.3575579]
[1745947175282,0.3608,95195.0,95194.0,0.2100447]
[1745947175484,0.3608,95195.0,95194.0,0.22601854]
[1745947175685,0.5708425,95195.0,95194.0,0.22601854]
[1745947176078,0.3608,95195.0,95194.0,0.22601854]
[1745947176481,0.3608,95195.0,95194.0,0.22701854]
[1745947176684,0.2100257,95206.0,95198.0,0.0525087]
[1745947176886,0.262531,95206.0,95205.0,0.210011]
[1745947177076,0.262531,95206.0,95205.0,0.22598484]
[1745947177281,0.2100164,95207.0,95206.0,0.052504]
[1745947177584,0.2100164,95207.0,95206.0,0.08447384]
[1745947177783,0.3552164,95207.0,95206.0,0.08447384]
[1745947178180,0.3552164,95207.0,95206.0,0.36549204]
[1745947179979,0.3552164,95207.0,95206.0,0.36533547]
[1745947181582,0.3552164,95207.0,95206.0,0.3730852]
[1745947181790,0.3552164,95207.0,95206.0,0.37304008]
[1745947181999,0.3562164,95207.0,95206.0,0.37304008]
[1745947183694,0.3562164,95207.0,95206.0,0.3729349]
[1745947184077,0.3562164,95207.0,95206.0,0.28876793]
[1745947184892,0.3572164,95207.0,95206.0,0.28876793]
[1745947185095,0.3562164,95207.0,95206.0,0.28876793]
[1745947185394,0.3572164,95207.0,95206.0,0.28876793]
[1745947185585,0.3562164,95207.0,95206.0,0.28876793]
[1745947185786,0.3572164,95207.0,95206.0,0.28876793]
[1745947187393,0.3572164,95207.0,95206.0,0.00774973]
[1745947187688,0.2100469,95193.0,95192.0,0.073]
[1745947187892,0.2100624,95186.0,95185.0,0.074]
[1745947188097,0.2100624,95186.0,95185.0,0.08943563]
[1745947188290,0.2100624,95186.0,95185.0,0.2840646]
[1745947189090,0.2100624,95186.0,95185.0,0.30752441]
[1745947189391,0.2842624,95186.0,95185.0,0.30652441]
[1745947189592,0.2842624,95186.0,95185.0,0.30652916]
[1745947190783,0.2842624,95186.0,95185.0,0.02346456]
[1745947190989,0.2100977,95170.0,95161.0,0.28326133]
[1745947191289,0.2100977,95170.0,95169.0,0.02347702]
[1745947191484,0.2100977,95170.0,95169.0,0.03525136]
[1745947191684,0.2100977,95170.0,95169.0,0.02347702]
[1745947191894,0.2100977,95170.0,95169.0,0.00790429]
[1745947192093,0.2101021,95168.0,95167.0,0.21168027]
[1745947192295,0.2101021,95168.0,95167.0,0.22719518]
[1745947192492,0.2101021,95168.0,95167.0,0.01709108]
[1745947192689,0.3559021,95168.0,95167.0,0.01709108]
[1745947193090,0.4759021,95168.0,95167.0,0.02478342]
[1745947194591,0.4769021,95168.0,95167.0,0.02478342]
[1745947195099,0.2101065,95166.0,95165.0,0.0010508]
[1745947195296,0.2101065,95166.0,95165.0,0.00910558]
[1745947195494,0.3151865,95166.0,95165.0,0.00910558]
[1745947195697,0.4572865,95166.0,95165.0,0.00910558]
[1745947196003,0.24718,95166.0,95156.0,0.01175098]
[1745947196196,0.2101396,95151.0,95150.0,0.0728]
[1745947196393,0.2101396,95151.0,95150.0,0.08431617]
[1745947196899,0.2101683,95138.0,95137.0,0.36996774]
[1745947197995,0.2101683,95138.0,95137.0,0.37803749]
[1745947198195,0.3301683,95138.0,95137.0,0.46466171]
[1745947198701,0.3301683,95138.0,95137.0,0.30486447]
[1745947198897,0.3301683,95138.0,95137.0,0.09369397]
[1745947199200,0.6909683,95138.0,95137.0,0.08476975]
[1745947199391,0.3301683,95138.0,95137.0,0.01406975]
[1745947199596,0.3301683,95138.0,95137.0,0.01306975]
[1745947200400,0.3301683,95138.0,95137.0,0.22324025]
[1745947200592,0.3301683,95138.0,95137.0,0.29594025]
[1745947200986,0.3301683,95138.0,95137.0,0.29094025]
[1745947201192,0.3301683,95138.0,95137.0,0.29594025]
[1745947203693,0.12,95138.0,95137.0,0.29594025]
[1745947204100,0.2101494,95147.0,95146.0,0.2626834]
[1745947204298,0.210145,95152.0,95151.0,0.2101301]
[1745947204788,0.2101334,95154.0,95153.0,0.2101308]
[1745947205195,0.2101462,95148.0,95147.0,0.2626808]
[1745947205389,0.2101462,95148.0,95147.0,0.1462]
[1745947205590,0.2101462,95148.0,95147.0,0.0722]
[1745947206196,0.3301462,95148.0,95147.0,0.0722]
[1745947208601,0.05254,95142.0,95138.0,0.074]
[1745947208791,0.3315048,95141.0,95140.0,0.0525408]
[1745947209198,0.4515048,95141.0,95140.0,0.0525408]
[1745947209803,0.4515048,95141.0,95140.0,0.2627047]
[1745947211106,0.4515048,95141.0,95140.0,0.2647047]
[1745947211491,0.4515048,95141.0,95140.0,0.2667047]
[1745947213797,0.3827048,95141.0,95140.0,0.2667047]
[1745947214906,0.3301639,95141.0,95140.0,0.2667047]
[1745947215101,0.12,95141.0,95140.0,0.2667047]
[1745947215298,0.12,95141.0,95140.0,0.3718127]
[1745947215902,0.2101347,95154.0,95153.0,0.262664]
[1745947216108,0.2101347,95154.0,95153.0,0.3151972]
[1745947216308,0.3301347,95154.0,95153.0,0.3151972]
[1745947217202,0.3311347,95154.0,95153.0,0.3151972]
[1745947217507,0.3311347,95154.0,95153.0,0.262664]
[1745947217709,0.2101352,95153.0,95152.0,0.0728]
[1745947217908,0.2841352,95153.0,95152.0,0.2829374]
[1745947218807,0.002,95154.0,95153.0,0.2101352]
[1745947219006,0.002,95154.0,95153.0,0.5709352]
[1745947219311,0.001,95154.0,95153.0,0.6909352]
[1745947220102,0.001,95154.0,95153.0,0.6919352]
[1745947220302,0.2101295,95156.0,95155.0,0.2101308]
[1745947221109,0.2101295,95156.0,95155.0,0.3301308]
[1745947221508,0.2101295,95156.0,95155.0,0.3311308]
[1745947222310,0.2101295,95156.0,95155.0,0.3331308]
[1745947223013,0.2101295,95156.0,95155.0,0.3321308]
[1745947223512,0.2101295,95156.0,95155.0,0.3311308]
[1745947223708,0.2101295,95156.0,95155.0,0.3321308]
[1745947224102,0.2101295,95156.0,95155.0,0.3311308]
[1745947224303,0.2101295,95156.0,95155.0,0.3321308]
[1745947226518,0.2101232,95159.0,95158.0,0.2101242]
[1745947227324,0.2101232,95159.0,95158.0,0.3301242]
[1745947227704,0.2101232,95159.0,95158.0,0.12]
[1745947228207,0.2101286,95156.0,95155.0,0.001]
[1745947228711,0.2101485,95147.0,95146.0,0.36994734]
[1745947229101,0.3301485,95147.0,95146.0,0.36994734]
[1745947229511,0.3301485,95147.0,95146.0,0.2101501]
[1745947229712,0.2101551,95144.0,95143.0,0.3608]
[1745947229914,0.2101595,95142.0,95141.0,0.42334303]
[1745947230419,0.2101595,95142.0,95141.0,0.21318133]
[1745947230715,0.3570595,95142.0,95141.0,0.42334303]
[1745947231010,0.3570595,95142.0,95141.0,0.21318133]
[1745947231213,0.4770595,95142.0,95141.0,0.42334303]
[1745947231407,0.4770595,95142.0,95141.0,0.42434303]
[1745947233014,0.4770595,95142.0,95141.0,0.42634303]
[1745947233819,0.4770595,95142.0,95141.0,0.2131617]
[1745947234828,0.8378595,95142.0,95141.0,0.2131617]
[1745947235006,0.98280801,95142.0,95127.0,0.16033115]
[1745947235204,0.2101904,95128.0,95127.0,0.37052375]
[1745947236112,0.4694904,95128.0,95127.0,0.37352375]
[1745947236610,0.4694904,95128.0,95127.0,0.40262528]
[1745947236811,0.4694904,95128.0,95127.0,0.3880299]
[1745947237017,0.4694904,95128.0,95127.0,0.3910299]
[1745947237217,0.3494904,95128.0,95127.0,0.3910299]
[1745947237417,0.3494904,95128.0,95127.0,0.1808373]
[1745947237616,0.3494904,95128.0,95127.0,0.23069875]
[1745947238708,0.3494904,95128.0,95127.0,0.23072261]
[1745947238916,0.3494904,95128.0,95127.0,0.23863013]
[1745947239109,0.3494904,95128.0,95127.0,0.02843753]
[1745947240216,0.3494904,95128.0,95127.0,0.23863013]
[1745947241522,0.0525461,95131.0,95127.0,0.02843753]
[1745947241723,0.0525371,95147.0,95140.0,0.0525404]
[1745947241937,0.0015,95150.0,95149.0,0.210144]
[1745947242222,0.10273694,95163.0,95162.0,0.2101153]
[1745947242428,0.10273694,95163.0,95162.0,0.5709153]
[1745947242625,0.2101131,95163.0,95162.0,0.3608]
[1745947242920,0.2101175,95161.0,95160.0,0.2095]
[1745947243121,0.2101175,95161.0,95160.0,0.0711]
[1745947243721,0.2830175,95161.0,95160.0,0.0711]
[1745947244924,0.2850175,95161.0,95160.0,0.0711]
[1745947245713,0.27370333,95161.0,95160.0,0.0711]
[1745947245912,0.27470333,95161.0,95160.0,0.0711]
[1745947246718,0.2101197,95160.0,95159.0,0.12832664]
[1745947247018,0.2818197,95160.0,95159.0,0.12832664]
[1745947247214,0.004,95161.0,95160.0,0.2101197]
[1745947247523,0.003,95161.0,95160.0,0.2101197]
[1745947247721,0.004,95161.0,95160.0,0.2101197]
[1745947248221,0.003,95161.0,95160.0,0.3301197]
[1745947248926,0.001,95161.0,95160.0,0.3301197]
[1745947249831,0.001,95166.0,95165.0,0.2101087]
[1745947250021,0.001,95166.0,95165.0,0.5709087]
[1745947250224,0.2111065,95166.0,95165.0,0.5709087]
[1745947250422,0.001,95166.0,95165.0,0.7123087]
[1745947251132,0.2111065,95166.0,95165.0,0.7123087]
[1745947251333,0.2836065,95166.0,95165.0,0.7123087]
[1745947252031,0.2846065,95166.0,95165.0,0.7123087]
[1745947254029,0.002,95166.0,95165.0,0.7123087]
[1745947254233,0.0525136,95190.0,95182.0,0.0525173]
[1745947254531,0.3608,95200.0,95184.0,0.2100668]
[1745947254733,0.0743,95195.0,95184.0,0.2100668]
[1745947254936,0.2100543,95190.0,95184.0,0.3534668]
[1745947255137,0.2100572,95189.0,95184.0,0.4734668]
[1745947255336,0.2100572,95189.0,95184.0,0.48492023]
[1745947255738,0.2100572,95189.0,95184.0,0.48692023]
[1745947256235,0.2100512,95192.0,95184.0,0.48692023]
[1745947256531,0.0525133,95191.0,95184.0,0.48692023]
[1745947256731,0.0525134,95190.0,95184.0,0.48692023]
[1745947256940,0.0525152,95187.0,95184.0,0.48692023]
[1745947257128,0.2115646,95185.0,95184.0,0.48692023]
[1745947257334,0.2115646,95185.0,95184.0,0.48792023]
[1745947257739,0.2115646,95185.0,95184.0,0.48592023]
[1745947258051,0.2115646,95185.0,95184.0,0.48792023]
[1745947258848,0.0015,95185.0,95184.0,0.48792023]
[1745947259149,0.0015,95185.0,95184.0,0.48692023]
[1745947259350,0.0015,95185.0,95184.0,0.49466559]
[1745947259949,0.2115646,95185.0,95184.0,0.49366559]
[1745947260150,0.0015,95185.0,95184.0,0.49366559]
[1745947260338,0.0015,95185.0,95184.0,0.49266559]
[1745947260535,0.0015,95185.0,95184.0,0.49466559]
[1745947260739,0.2115646,95185.0,95184.0,0.14219879]
[1745947260940,0.2115646,95185.0,95184.0,0.35126559]
[1745947261151,0.2115646,95185.0,95184.0,0.02119879]
[1745947261543,0.2115646,95185.0,95184.0,0.02019879]
[1745947261941,0.2115646,95185.0,95184.0,0.23026559]
[1745947262343,0.2135646,95185.0,95184.0,0.23026559]
[1745947262547,0.2135646,95185.0,95184.0,0.37516559]
[1745947262848,0.2145646,95185.0,95184.0,0.16509879]
[1745947263245,0.2145646,95185.0,95184.0,0.37516559]
[1745947263550,0.2135646,95185.0,95184.0,0.37516559]
[1745947264141,0.2145646,95185.0,95184.0,0.37516559]
[1745947264650,0.2125646,95185.0,95184.0,0.37516559]
[1745947264847,0.2135646,95185.0,95184.0,0.37516559]
[1745947265552,0.2125646,95185.0,95184.0,0.37516559]
[1745947266355,0.2125646,95185.0,95184.0,0.30286559]
[1745947266653,0.0035,95185.0,95184.0,0.30286559]
[1745947266854,0.3608,95214.0,95194.0,0.2100447]
[1745947266855,0.3573,95195.0,95194.0,0.2100447]
[1745947267039,0.3608,95206.0,95195.0,0.2100425]
[1745947267350,0.3608,95206.0,95195.0,0.2803425]
[1745947267555,0.2110403,95196.0,95195.0,0.0703]
[1745947267738,0.2110403,95196.0,95195.0,0.2803425]
[1745947268445,0.2800403,95196.0,95195.0,0.2803425]
[1745947268641,0.2810403,95196.0,95195.0,0.2803425]
[1745947269844,0.2810403,95196.0,95195.0,0.2813425]
[1745947270855,0.001,95196.0,95195.0,0.2813425]
[1745947271043,0.001,95196.0,95195.0,0.4013425]
[1745947273651,0.001,95196.0,95195.0,0.4003425]
[1745947273852,0.2110403,95196.0,95195.0,0.122]
[1745947274151,0.2110403,95196.0,95195.0,0.002]
[1745947274541,0.2110403,95196.0,95195.0,0.2120425]
[1745947274742,0.2810403,95196.0,95195.0,0.2130425]
[1745947275451,0.2820403,95196.0,95195.0,0.2120425]
[1745947275752,0.2820403,95196.0,95195.0,0.2100425]
[1745947276053,0.2100469,95193.0,95192.0,0.9316457]
[1745947277143,0.2100469,95193.0,95189.0,0.16033115]
[1745947277144,0.2100535,95190.0,95189.0,0.16033115]
[1745947277653,0.5651055,95190.0,95189.0,0.16033115]
[1745947278245,0.6851055,95190.0,95189.0,0.16033115]
[1745947278757,0.2100646,95185.0,95184.0,0.00774536]
[1745947279052,0.2100778,95179.0,95178.0,0.16033115]
[1745947280255,0.4686778,95179.0,95178.0,0.16033115]
[1745947280460,0.5737418,95179.0,95178.0,0.16033115]
[1745947281045,0.5737418,95179.0,95178.0,0.1682059]
[1745947281450,0.5777418,95179.0,95178.0,0.1682059]
[1745947282050,0.5737418,95179.0,95178.0,0.1682059]
[1745947282256,0.5827418,95179.0,95178.0,0.1682059]
[1745947282651,0.5827418,95179.0,95178.0,0.00787475]
[1745947282959,0.2101021,95168.0,95161.0,0.01125903]
[1745947283552,0.2101021,95168.0,95163.0,0.210113]
[1745947283753,0.2101021,95168.0,95167.0,0.01708085]
[1745947284047,0.2825021,95168.0,95167.0,0.01708085]
[1745947284449,0.2825021,95168.0,95167.0,0.22718515]
[1745947284754,0.2825021,95168.0,95167.0,0.21168047]
[1745947284960,0.2855021,95168.0,95167.0,0.2195103]
[1745947285453,0.2875021,95168.0,95167.0,0.3580103]
[1745947285864,0.2845021,95168.0,95167.0,0.3580103]
[1745947286065,0.2825021,95168.0,95167.0,0.3590103]
[1745947287150,0.0724,95168.0,95167.0,0.3590103]
[1745947287457,0.0525223,95174.0,95167.0,0.3590103]
[1745947287458,0.2626216,95174.0,95173.0,0.2626034]
[1745947287661,0.2626216,95174.0,95173.0,0.63893943]
[1745947288363,0.2626216,95174.0,95173.0,0.47051477]
[1745947288960,0.2626216,95174.0,95173.0,0.52103603]
[1745947289455,0.2626216,95174.0,95173.0,0.52203603]
[1745947289666,0.2626216,95174.0,95173.0,0.5065]
[1745947289859,0.2626216,95174.0,95173.0,0.5055]
[1745947290958,0.2626216,95174.0,95173.0,0.4328]
[1745947291357,0.2626216,95174.0,95173.0,0.3608]
[1745947291557,0.2636216,95174.0,95173.0,0.3608]
[1745947291956,0.2636216,95174.0,95167.0,0.009406]
[1745947291957,0.2101021,95168.0,95167.0,0.009406]
[1745947292559,0.2101021,95168.0,95167.0,0.2195103]
[1745947292760,0.2101021,95168.0,95167.0,0.23501469]
[1745947292961,0.2783021,95168.0,95167.0,0.23501469]
[1745947293160,0.2783021,95168.0,95167.0,0.23601469]
[1745947293461,0.2783021,95168.0,95167.0,0.31041469]
[1745947293664,0.2783021,95168.0,95167.0,0.2939103]
[1745947294063,0.2793021,95168.0,95167.0,0.2939103]
[1745947294669,0.0692,95168.0,95167.0,0.2939103]
[1745947294968,0.15328808,95190.0,95168.0,0.2101021]
[1745947294969,0.2101,95169.0,95168.0,0.2101021]